bitfinex-derivatives/quotes_BNBF0:USTF0_20250211
["timestamp","ask_amount","ask_price","bid_price","bid_amount"]
[1739312372721,1.33818328,641.42,640.64,0.31218781]
[1739312372925,0.656,641.46,640.64,0.31218781]
[1739312373125,1.33729083,641.45,640.64,0.31218781]
[1739312373325,1.33729083,641.44,640.64,0.31218781]
[1739312373524,0.656,641.46,640.64,0.31218781]
[1739312376226,1.806,641.46,640.64,0.31218781]
[1739312392838,1.15,641.46,640.64,0.31218781]
[1739312400746,1.971,641.46,640.64,0.31218781]
[1739312402538,1.33534384,641.45,640.64,0.31218781]
[1739312402742,1.33534384,641.44,640.64,0.31218781]
[1739312402939,0.821,641.46,640.64,0.31218781]
[1739312403144,1.33536727,641.45,640.64,0.31218781]
[1739312403345,1.33536727,641.44,640.64,0.31218781]
[1739312403541,0.821,641.46,640.64,0.31218781]
[1739312403741,1.3351832,641.45,640.64,0.31218781]
[1739312403937,1.3351832,641.44,640.64,0.31218781]
[1739312404145,1.33518567,641.43,640.64,0.31218781]
[1739312404345,0.885,641.45,640.64,0.31218781]
[1739312404545,1.33516593,641.44,640.64,0.31218781]
[1739312404746,0.885,641.45,640.64,0.31218781]
[1739312404944,1.33517448,641.44,640.64,0.31218781]
[1739312405147,1.33517448,641.43,640.64,0.31218781]
[1739312405348,1.33517448,641.42,640.64,0.31218781]
[1739312405542,1.33517448,641.41,640.64,0.31218781]
[1739312405750,1.33517448,641.4,640.64,0.31218781]
[1739312405952,1.33517448,641.39,640.64,0.31218781]
[1739312406151,1.33517448,641.38,640.64,0.31218781]
[1739312406351,1.33517448,641.37,640.64,0.31218781]
[1739312406547,1.3352319,641.36,640.64,0.31218781]
[1739312406848,1.3352319,641.35,640.64,0.31218781]
[1739312407052,1.3352319,641.34,640.64,0.31218781]
[1739312407245,1.3352319,641.33,640.64,0.31218781]
[1739312407450,1.3352319,641.32,640.64,0.31218781]
[1739312407752,1.3352319,641.31,640.64,0.31218781]
[1739312407953,1.3352319,641.3,640.64,0.31218781]
[1739312408152,1.3352319,641.29,640.64,0.31218781]
[1739312408353,1.3352319,641.28,640.64,0.31218781]
[1739312408548,1.334836,641.27,640.64,0.31218781]
[1739312408753,1.334836,641.26,640.64,0.31218781]
[1739312409054,1.334836,641.25,640.64,0.31218781]
[1739312409251,1.334836,641.24,640.64,0.31218781]
[1739312409449,1.334836,641.23,640.64,0.31218781]
[1739312409647,0.885,641.45,640.64,0.31218781]
[1739312409851,1.33458047,641.44,640.64,0.31218781]
[1739312410052,1.33458047,641.43,640.64,0.31218781]
[1739312410251,1.33458047,641.42,640.64,0.31218781]
[1739312410451,1.33458047,641.41,640.64,0.31218781]
[1739312410651,1.33458047,641.4,640.64,0.31218781]
[1739312410850,1.33458047,641.39,640.64,0.31218781]
[1739312411053,1.33458047,641.38,640.64,0.31218781]
[1739312411251,1.33458047,641.37,640.64,0.31218781]
[1739312411449,0.657,641.38,640.64,0.31218781]
[1739312411450,1.33458047,641.36,640.64,0.31218781]
[1739312411657,1.33458047,641.35,640.64,0.31218781]
[1739312411853,1.33458047,641.34,640.64,0.31218781]
[1739312412054,1.33458047,641.33,640.64,0.31218781]
[1739312412253,1.33458047,641.32,640.64,0.31218781]
[1739312412451,1.33458047,641.31,640.64,0.31218781]
[1739312412654,0.657,641.38,640.64,0.31218781]
[1739312412655,1.33458047,641.3,640.64,0.31218781]
[1739312412854,1.33458047,641.29,640.64,0.31218781]
[1739312413052,1.33458047,641.28,640.64,0.31218781]
[1739312413252,1.33471374,641.27,640.64,0.31218781]
[1739312413457,1.33471374,641.26,640.64,0.31218781]
[1739312413757,1.33471374,641.25,640.64,0.31218781]
[1739312413958,1.33471374,641.24,640.64,0.31218781]
[1739312414161,1.33471374,641.23,640.64,0.31218781]
[1739312414359,1.33471374,641.22,640.64,0.31218781]
[1739312414559,0.657,641.38,640.64,0.31218781]
[1739312414759,1.33455507,641.37,640.64,0.31218781]
[1739312414958,1.33457548,641.36,640.64,0.31218781]
[1739312415262,1.33457548,641.35,640.64,0.31218781]
[1739312415462,1.33457548,641.34,640.64,0.31218781]
[1739312415658,1.33457548,641.33,640.64,0.31218781]
[1739312415858,1.33457548,641.32,640.64,0.31218781]
[1739312416054,1.33457548,641.31,640.64,0.31218781]
[1739312416253,1.33457548,641.3,640.64,0.31218781]
[1739312416458,1.33457548,641.29,640.64,0.31218781]
[1739312416659,1.33457548,641.28,640.64,0.31218781]
[1739312416858,1.33457548,641.27,640.64,0.31218781]
[1739312417059,1.33457548,641.26,640.64,0.31218781]
[1739312417256,0.867,641.28,640.64,0.31218781]
[1739312417257,1.33457548,641.25,640.64,0.31218781]
[1739312417460,1.33457548,641.24,640.64,0.31218781]
[1739312417662,1.33457548,641.23,640.64,0.31218781]
[1739312417858,1.33457548,641.22,640.64,0.31218781]
[1739312418062,1.33457548,641.21,639.71,1.13057641]
[1739312418258,1.33457548,641.2,639.73,0.31263189]
[1739312418560,1.33457548,641.19,639.73,0.31263189]
[1739312418765,1.33457548,641.18,639.73,0.31263189]
[1739312418958,1.33457548,641.17,639.73,0.31263189]
[1739312419159,1.33457548,641.16,639.73,0.31263189]
[1739312419362,1.33457548,641.15,639.73,0.31263189]
[1739312419563,1.33457548,641.14,639.73,0.31263189]
[1739312419764,1.33457548,641.13,639.73,0.31263189]
[1739312420067,1.33457548,641.12,639.73,0.31263189]
[1739312420267,1.33457548,641.11,639.73,0.31263189]
[1739312420468,1.33457548,641.1,639.73,0.31263189]
[1739312420662,1.33457548,641.09,639.73,0.31263189]
[1739312420863,1.33457548,641.08,639.73,0.31263189]
[1739312421062,0.867,641.28,639.73,0.31263189]
[1739312421271,1.33559546,641.27,639.74,1.62935969]
[1739312421563,1.33514216,641.26,639.76,0.31261723]
[1739312421862,1.33514216,641.25,639.76,0.31261723]
[1739312422067,1.33514216,641.24,639.76,0.31261723]
[1739312422265,1.33514216,641.23,639.76,0.31261723]
[1739312422469,1.33514216,641.22,639.76,0.31261723]
[1739312422768,1.33514216,641.21,639.76,0.31261723]
[1739312422969,1.33514216,641.2,639.76,0.31261723]
[1739312423163,1.33532534,641.19,639.76,0.31261723]
[1739312423362,1.33532534,641.18,639.76,0.31261723]
[1739312423566,1.33532534,641.17,639.76,0.31261723]
[1739312423767,1.33532534,641.16,639.76,0.31261723]
[1739312424063,1.33532534,641.15,639.76,0.31261723]
[1739312424266,1.33532534,641.14,639.76,0.31261723]
[1739312424462,1.33532534,641.13,639.76,0.31261723]
[1739312424665,1.33532534,641.12,639.76,0.31261723]
[1739312424868,1.33532534,641.11,639.76,0.31261723]
[1739312425063,1.33532534,641.1,639.76,0.31261723]
[1739312425267,1.33532534,641.09,639.76,0.31261723]
[1739312425467,1.33532534,641.08,639.76,0.31261723]
[1739312425666,1.33532534,641.07,639.76,0.31261723]
[1739312425863,1.33532534,641.06,639.76,0.31261723]
[1739312426066,1.33532534,641.05,639.76,0.31261723]
[1739312426271,1.33532534,641.04,639.76,0.31261723]
[1739312426464,1.33532534,641.03,639.76,0.31261723]
[1739312426668,1.33532534,641.02,639.76,0.31261723]
[1739312426870,1.33532534,641.01,639.76,0.31261723]
[1739312427070,1.33532534,641.0,639.76,0.31261723]
[1739312427272,1.33532534,640.99,639.76,0.31261723]
[1739312427471,1.33532534,640.98,639.76,0.31261723]
[1739312427673,1.33532534,640.97,639.76,0.31261723]
[1739312427871,1.33532534,640.96,639.76,0.31261723]
[1739312428072,1.33532534,640.95,639.76,0.31261723]
[1739312428270,1.33532534,640.94,639.76,0.31261723]
[1739312428464,1.33532534,640.93,639.76,0.31261723]
[1739312428670,1.33532534,640.92,639.76,0.31261723]
[1739312428871,1.33532534,640.91,639.76,0.31261723]
[1739312429171,1.33532534,640.9,639.76,0.31261723]
[1739312429371,1.33532534,640.89,639.76,0.31261723]
[1739312429571,1.33532534,640.88,639.76,0.31261723]
[1739312429873,0.867,641.28,639.76,0.31261723]
[1739312430067,1.33196224,641.27,639.76,0.31261723]
[1739312430270,1.33196224,641.26,639.76,0.31261723]
[1739312430470,1.33196224,641.25,639.76,0.31261723]
[1739312430671,1.33196224,641.24,639.76,0.31261723]
[1739312430971,1.33196224,641.23,639.76,0.31261723]
[1739312431173,1.33196224,641.22,639.76,0.31261723]
[1739312431373,1.33196224,641.21,639.76,0.31261723]
[1739312431573,1.33082293,641.2,639.76,0.31261723]
[1739312431768,1.33082293,641.19,639.76,0.31261723]
[1739312431973,1.33082293,641.18,639.76,0.31261723]
[1739312432174,1.33082293,641.17,639.76,0.31261723]
[1739312432374,1.33082293,641.16,639.76,0.31261723]
[1739312432574,1.018,641.23,639.76,0.31261723]
[1739312432575,1.33001985,641.15,639.76,0.31261723]
[1739312432776,1.33001985,641.14,639.76,0.31261723]
[1739312432973,1.33001985,641.13,639.76,0.31261723]
[1739312433175,1.33001985,641.12,639.76,0.31261723]
[1739312433372,1.33001985,641.11,639.76,0.31261723]
[1739312433575,1.018,641.23,639.76,0.31261723]
[1739312433775,1.32970174,641.22,639.76,0.31261723]
[1739312433975,1.32970174,641.21,639.76,0.31261723]
[1739312434178,1.32970174,641.2,639.76,0.31261723]
[1739312434378,1.32970174,641.19,639.76,0.31261723]
[1739312434579,1.32970174,641.18,639.76,0.31261723]
[1739312434772,1.32970174,641.17,639.76,0.31261723]
[1739312434976,1.32970174,641.16,639.76,0.31261723]
[1739312435174,1.32970174,641.15,639.76,0.31261723]
[1739312435371,1.018,641.23,639.76,0.31261723]
[1739312435372,1.32970174,641.14,639.76,0.31261723]
[1739312435576,1.32970174,641.13,639.76,0.31261723]
[1739312435873,1.32970174,641.12,639.76,0.31261723]
[1739312436077,1.32970174,641.11,639.76,0.31261723]
[1739312436272,1.32970174,641.1,639.76,0.31261723]
[1739312436476,0.657,641.14,639.76,0.31261723]
[1739312436774,1.32930361,641.13,639.76,0.31261723]
[1739312436978,1.32930361,641.12,639.76,0.31261723]
[1739312437178,0.657,641.14,639.76,0.31261723]
[1739312437179,1.32930361,641.11,639.76,0.31261723]
[1739312437378,0.657,641.14,639.76,0.31261723]
[1739312437579,1.32942006,641.13,639.76,0.31261723]
[1739312437778,1.32942006,641.12,639.76,0.31261723]
[1739312437971,0.657,641.14,639.76,0.31261723]
[1739312438177,1.32938161,641.13,639.76,0.31261723]
[1739312438479,1.32959717,641.12,639.76,0.31261723]
[1739312438678,0.657,641.14,639.76,0.31261723]
[1739312438878,1.3295942,641.13,639.76,0.31261723]
[1739312439077,1.3295942,641.12,639.76,0.31261723]
[1739312439278,1.32998424,641.11,639.76,0.31261723]
[1739312439478,0.657,641.14,639.76,0.31261723]
[1739312439679,1.3299856,641.13,639.76,0.31261723]
[1739312439879,1.3299856,641.12,639.76,0.31261723]
[1739312440178,1.3299856,641.11,639.76,0.31261723]
[1739312440380,0.97,641.12,639.76,0.31261723]
[1739312440577,1.33046728,641.11,639.76,0.31261723]
[1739312440777,0.97,641.12,639.76,0.31261723]
[1739312441174,1.33046266,641.11,639.76,0.31261723]
[1739312441473,0.97,641.12,639.76,0.31261723]
[1739312441677,1.33099911,641.11,639.76,0.31261723]
[1739312441881,1.33099911,641.1,639.76,0.31261723]
[1739312442080,0.97,641.12,639.76,0.31261723]
[1739312444580,1.945,641.12,639.76,0.31261723]
[1739312445679,1.945,641.12,639.88,1.13057641]
[1739312446077,1.945,641.12,639.9,0.31254883]
[1739312448581,1.945,641.12,639.9,1.44312524]
[1739312450778,0.657,641.11,639.9,1.44312524]
[1739312451185,0.657,641.11,639.9,0.31254883]
[1739312456190,0.657,641.11,639.92,1.13057641]
[1739312456390,0.657,641.11,639.94,0.31252929]
[1739312460297,0.657,641.11,640.0,1.13057641]
[1739312460496,0.657,641.11,640.02,0.31249023]
[1739312462997,0.975,641.12,640.02,0.31249023]
[1739312463998,0.657,641.11,640.02,0.31249023]
[1739312464594,1.34170896,641.1,640.02,0.31249023]
[1739312464796,1.34170896,641.09,640.02,0.31249023]
[1739312464995,1.34170896,641.08,640.02,0.31249023]
[1739312465198,1.34170896,641.07,640.02,0.31249023]
[1739312465398,1.34170896,641.06,640.02,0.31249023]
[1739312465593,1.34170896,641.05,640.02,0.31249023]
[1739312465793,1.063,641.06,640.02,0.31249023]
[1739312465999,1.34210034,641.05,640.02,0.31249023]
[1739312466297,1.34214744,641.04,640.02,0.31249023]
[1739312466499,1.34214744,641.03,640.02,0.31249023]
[1739312466699,1.34214744,641.02,640.02,0.31249023]
[1739312466901,1.34214744,641.01,640.02,0.31249023]
[1739312467100,1.34214744,641.0,640.02,0.31249023]
[1739312467299,1.34214744,640.99,640.02,0.31249023]
[1739312467601,1.063,641.06,640.02,0.31249023]
[1739312467801,1.34225061,641.05,640.02,0.31249023]
[1739312467993,1.34225061,641.04,640.02,0.31249023]
[1739312468196,1.34225061,641.03,640.02,0.31249023]
[1739312468396,1.34225061,641.02,640.02,0.31249023]
[1739312468595,1.34225061,641.01,640.02,0.31249023]
[1739312468794,1.34225061,641.0,640.02,0.31249023]
[1739312468997,1.34225061,640.99,640.02,0.31249023]
[1739312469199,1.34225061,640.98,640.02,0.31249023]
[1739312469399,1.34225061,640.97,640.02,0.31249023]
[1739312469600,1.34225061,640.96,640.02,0.31249023]
[1739312469901,1.063,641.06,640.02,0.31249023]
[1739312470202,1.34231108,641.05,640.02,0.31249023]
[1739312470400,1.34231108,641.04,640.02,0.31249023]
[1739312470593,1.34231108,641.03,640.02,0.31249023]
[1739312470798,1.34231108,641.02,640.02,0.31249023]
[1739312470999,1.34231108,641.01,640.02,1.44306664]
[1739312471198,1.34231108,641.0,640.02,1.44306664]
[1739312471502,1.34231108,640.99,640.02,1.44306664]
[1739312471703,1.34231108,640.98,640.02,1.44306664]
[1739312471997,1.063,641.06,640.02,1.44306664]
[1739312472202,1.34239364,641.05,640.02,1.44306664]
[1739312472502,1.34239364,641.04,640.02,1.44306664]
[1739312472698,1.34239364,641.03,640.02,1.44306664]
[1739312472902,1.34239364,641.02,640.02,1.44306664]
[1739312473098,1.063,641.06,640.02,1.44306664]
[1739312473099,1.34239364,641.01,640.12,1.13057641]
[1739312473305,1.34239364,641.0,640.13,0.31243653]
[1739312473509,1.34239364,640.99,640.13,0.31243653]
[1739312473705,1.34239364,640.98,640.13,0.31243653]
[1739312473905,1.34239364,640.97,640.13,0.31243653]
[1739312474103,1.34239364,640.96,640.13,0.31243653]
[1739312474309,1.34239364,640.95,640.13,0.31243653]
[1739312474511,1.34239364,640.94,640.13,0.31243653]
[1739312474705,1.34239364,640.93,640.13,0.31243653]
[1739312474907,1.34239364,640.92,640.13,0.31243653]
[1739312475108,1.063,641.06,640.13,0.31243653]
[1739312475309,1.34245293,641.05,640.13,0.31243653]
[1739312475613,1.34245293,641.04,640.13,0.31243653]
[1739312475811,1.34245293,641.03,640.13,0.31243653]
[1739312476114,1.34245293,641.02,640.18,1.13057641]
[1739312476310,1.34245293,641.01,640.19,0.31240725]
[1739312476506,1.34245293,641.0,640.19,0.31240725]
[1739312476709,1.34245293,640.99,640.19,0.31240725]
[1739312476907,1.34245293,640.98,640.19,0.31240725]
[1739312477211,1.34249276,640.97,640.19,0.31240725]
[1739312477410,1.34249276,640.96,640.19,0.31240725]
[1739312477612,1.34249276,640.95,640.19,0.31240725]
[1739312477810,1.34249276,640.94,640.19,0.31240725]
[1739312478006,1.34249276,640.93,640.19,0.31240725]
[1739312478210,1.34249276,640.92,640.19,0.31240725]
[1739312478405,1.34249276,640.91,640.19,0.31240725]
[1739312478613,1.34249276,640.9,640.19,0.31240725]
[1739312478812,1.063,641.06,640.19,0.31240725]
[1739312479013,1.34251259,641.05,640.19,0.31240725]
[1739312479210,1.34251259,641.04,640.19,0.31240725]
[1739312479410,1.34251259,641.03,640.19,0.31240725]
[1739312479610,1.34251259,641.02,640.19,0.31240725]
[1739312479813,1.34246837,641.01,640.19,0.31240725]
[1739312480013,1.34246837,641.0,640.19,0.31240725]
[1739312480208,1.34246837,640.99,640.19,0.31240725]
[1739312480417,1.34246837,640.98,640.19,0.31240725]
[1739312480614,1.34246837,640.97,640.19,0.31240725]
[1739312480815,1.34246837,640.96,640.19,0.31240725]
[1739312481114,1.34246837,640.95,640.19,0.31240725]
[1739312481310,1.34246508,640.94,640.19,0.31240725]
[1739312481509,1.34246508,640.93,640.19,0.31240725]
[1739312481712,1.34246508,640.92,640.19,0.31240725]
[1739312481907,1.34246508,640.91,640.19,0.31240725]
[1739312482114,1.34246508,640.9,640.19,0.31240725]
[1739312482314,1.063,641.06,640.19,0.31240725]
[1739312482513,1.34245728,641.05,640.19,0.31240725]
[1739312482815,1.34245728,641.04,640.19,0.31240725]
[1739312483013,1.34245728,641.03,640.19,0.31240725]
[1739312483214,1.34245728,641.02,640.19,0.31240725]
[1739312483408,1.34242755,641.01,640.19,0.31240725]
[1739312483611,1.34242755,641.0,640.19,0.31240725]
[1739312483914,1.34242755,640.99,640.19,0.31240725]
[1739312484114,1.34242755,640.98,640.19,0.31240725]
[1739312484413,1.063,641.06,640.19,0.31240725]
[1739312484617,1.34235146,641.05,640.19,0.31240725]
[1739312484808,1.34235146,641.04,640.19,0.31240725]
[1739312485011,1.34235146,641.03,640.19,0.31240725]
[1739312485310,1.34235146,641.02,640.19,0.31240725]
[1739312485511,1.34235146,641.01,640.19,0.31240725]
[1739312485708,1.34235146,641.0,640.19,0.31240725]
[1739312485912,1.063,641.06,640.19,0.31240725]
[1739312485913,1.34235146,640.99,640.19,0.31240725]
[1739312486112,1.063,641.06,640.19,0.31240725]
[1739312486309,0.658,640.98,640.19,0.31240725]
[1739312488319,0.658,640.98,640.25,1.13057641]
[1739312488920,0.658,640.98,640.26,0.31237309]
[1739312490721,0.658,640.98,640.35,1.13057641]
[1739312490921,0.658,640.98,640.36,0.31232431]
[1739312493022,1.702,640.98,640.36,0.31232431]
[1739312497522,1.34479826,640.97,640.36,0.31232431]
[1739312497725,1.702,640.98,640.36,0.31232431]
[1739312497922,1.34481891,640.97,640.36,0.31232431]
[1739312498127,1.702,640.98,640.36,0.31232431]
[1739312498328,1.3448538,640.97,640.36,0.31232431]
[1739312498528,1.702,640.98,640.36,0.31232431]
[1739312498529,1.3448538,640.96,640.36,0.31232431]
[1739312498728,1.702,640.98,640.36,0.31232431]
[1739312499330,1.34487344,640.97,640.36,0.31232431]
[1739312499530,1.34487344,640.96,640.36,0.31232431]
[1739312499722,1.34487344,640.95,640.36,0.31232431]
[1739312499923,1.34487344,640.94,640.36,0.31232431]
[1739312500128,1.34487344,640.93,640.36,0.31232431]
[1739312500430,1.34487344,640.92,640.36,0.31232431]
[1739312500624,1.34487344,640.91,640.36,0.31232431]
[1739312500825,1.34487344,640.9,640.36,0.31232431]
[1739312501026,1.34487344,640.89,640.36,0.31232431]
[1739312501225,1.34487344,640.88,640.36,0.31232431]
[1739312501424,1.34487344,640.87,640.36,0.31232431]
[1739312501729,1.34487344,640.86,640.36,0.31232431]
[1739312501930,1.34487344,640.85,640.36,0.31232431]
[1739312502131,1.34487344,640.84,640.36,0.31232431]
[1739312502330,1.34487344,640.83,640.36,0.31232431]
[1739312502531,1.34487344,640.82,640.36,0.31232431]
[1739312502732,1.34487344,640.81,640.36,0.31232431]
[1739312502929,1.34487344,640.8,640.36,0.31232431]
[1739312503127,1.34487344,640.79,640.36,0.31232431]
[1739312503331,1.34487344,640.78,640.36,0.31232431]
[1739312503631,1.702,640.98,640.36,0.31232431]
[1739312503827,1.34431855,640.97,640.36,0.31232431]
[1739312504025,1.34431855,640.96,640.36,0.31232431]
[1739312504230,1.34431855,640.95,640.36,0.31232431]
[1739312504429,1.34431855,640.94,640.36,0.31232431]
[1739312504627,1.34431855,640.93,640.36,0.31232431]
[1739312504829,1.34431855,640.92,640.36,0.31232431]
[1739312505029,1.34431855,640.91,640.36,0.31232431]
[1739312505230,1.34431855,640.9,640.36,0.31232431]
[1739312505432,1.34431855,640.89,640.36,0.31232431]
[1739312505634,1.34431855,640.88,640.36,0.31232431]
[1739312505835,1.34431855,640.87,640.36,0.31232431]
[1739312506035,1.34431855,640.86,640.36,0.31232431]
[1739312506232,1.34431855,640.85,640.36,0.31232431]
[1739312506430,1.34431855,640.84,640.36,0.31232431]
[1739312506631,1.702,640.98,640.36,0.31232431]
[1739312506837,1.34373582,640.97,640.36,0.31232431]
[1739312507032,1.702,640.98,640.36,0.31232431]
[1739312507033,1.34373582,640.96,640.36,0.31232431]
[1739312507237,1.34373582,640.95,640.36,0.31232431]
[1739312507530,1.34373582,640.94,640.36,0.31232431]
[1739312507736,1.34373582,640.93,640.36,0.31232431]
[1739312507935,1.34373582,640.92,640.36,0.31232431]
[1739312508129,1.34373582,640.91,640.36,0.31232431]
[1739312508334,1.34373582,640.9,640.36,0.31232431]
[1739312508533,1.702,640.98,640.36,0.31232431]
[1739312508534,1.34373582,640.89,640.36,0.31232431]
[1739312508735,1.34373582,640.88,640.36,0.31232431]
[1739312509032,1.34373582,640.87,640.36,0.31232431]
[1739312509231,1.34373582,640.86,640.36,0.31232431]
[1739312509437,1.34373582,640.85,640.36,0.31232431]
[1739312509638,1.34373582,640.84,640.36,0.31232431]
[1739312509934,1.34373582,640.83,640.36,0.31232431]
[1739312510138,1.34373582,640.82,640.36,0.31232431]
[1739312510339,1.34373582,640.81,640.36,0.31232431]
[1739312510539,1.34373582,640.8,640.36,0.31232431]
[1739312510733,1.34373582,640.79,640.36,0.31232431]
[1739312510934,1.34373582,640.78,640.36,0.31232431]
[1739312511134,1.34373582,640.77,640.36,0.31232431]
[1739312511334,1.34373582,640.76,640.36,0.31232431]
[1739312511533,1.34373582,640.75,640.36,0.31232431]
[1739312511738,1.044,640.98,640.36,0.31232431]
[1739312511939,1.3431136,640.97,640.36,0.31232431]
[1739312512139,1.3431136,640.96,640.36,0.31232431]
[1739312512340,1.3431136,640.95,640.36,0.31232431]
[1739312512536,1.3431136,640.94,640.36,0.31232431]
[1739312512836,1.3431136,640.93,640.36,0.31232431]
[1739312513041,1.3431136,640.92,640.36,0.31232431]
[1739312513238,1.3431136,640.91,640.36,0.31232431]
[1739312513439,1.3431136,640.9,640.36,0.31232431]
[1739312513637,1.3431136,640.89,640.36,0.31232431]
[1739312513836,1.3431136,640.88,640.36,0.31232431]
[1739312514039,1.3431136,640.87,640.36,0.31232431]
[1739312514238,1.3431136,640.86,640.36,0.31232431]
[1739312514436,1.3431136,640.85,640.36,0.31232431]
[1739312514737,0.658,640.96,640.36,0.31232431]
[1739312514738,1.3431136,640.84,640.36,0.31232431]
[1739312514936,1.34326857,640.83,640.36,0.31232431]
[1739312515140,1.34326857,640.82,640.36,0.31232431]
[1739312515341,1.34326857,640.81,640.36,0.31232431]
[1739312515642,1.34326857,640.8,640.36,0.31232431]
[1739312515843,1.34326857,640.79,640.36,0.31232431]
[1739312516042,1.34326857,640.78,640.36,0.31232431]
[1739312516245,1.34326857,640.77,640.36,0.31232431]
[1739312516445,1.34326857,640.76,640.36,0.31232431]
[1739312516644,1.34326857,640.75,640.36,0.31232431]
[1739312516945,1.34326857,640.74,640.36,0.31232431]
[1739312517139,1.34326857,640.73,640.36,0.31232431]
[1739312517343,1.34326857,640.72,640.36,0.31232431]
[1739312517543,0.811,640.74,640.36,0.31232431]
[1739312517745,1.34333474,640.73,640.36,0.31232431]
[1739312517941,1.34333474,640.72,640.36,0.31232431]
[1739312518147,0.811,640.74,640.36,0.31232431]
[1739312518346,1.34333423,640.73,640.36,0.31232431]
[1739312518542,1.34333423,640.72,640.36,0.31232431]
[1739312518742,1.34333423,640.71,640.36,0.31232431]
[1739312518945,0.811,640.74,640.36,0.31232431]
[1739312519240,1.34339829,640.73,640.36,0.31232431]
[1739312519445,1.34339829,640.72,640.36,0.31232431]
[1739312519646,0.811,640.74,640.36,0.31232431]
[1739312519846,1.34344685,640.73,640.36,0.31232431]
[1739312520044,1.34344685,640.72,640.36,0.31232431]
[1739312520241,1.34344685,640.71,640.36,0.31232431]
[1739312520546,0.811,640.74,640.36,0.31232431]
[1739312520847,1.34345531,640.73,640.36,0.31232431]
[1739312521042,1.34345531,640.72,640.36,0.31232431]
[1739312521244,1.34345531,640.71,640.36,0.31232431]
[1739312521441,0.811,640.74,640.36,0.31232431]
[1739312521442,1.34346405,640.7,640.36,0.31232431]
[1739312521646,0.811,640.74,640.36,0.31232431]
[1739312521945,1.34354374,640.73,640.36,0.31232431]
[1739312522141,1.34354374,640.72,640.36,0.31232431]
[1739312522341,1.34354374,640.71,640.36,0.31232431]
[1739312522644,0.811,640.74,640.36,0.31232431]
[1739312522847,1.343465,640.73,640.36,0.31232431]
[1739312523040,1.343465,640.72,640.36,0.31232431]
[1739312523245,0.811,640.74,640.36,0.31232431]
[1739312523441,1.34343205,640.73,640.36,0.31232431]
[1739312523646,1.34343205,640.72,640.36,0.31232431]
[1739312523842,1.34343205,640.71,640.36,0.31232431]
[1739312524042,0.811,640.74,640.36,0.31232431]
[1739312524246,1.3435172,640.73,640.36,0.31232431]
[1739312524447,0.811,640.74,640.36,0.31232431]
[1739312524641,0.658,640.72,640.36,0.31232431]
[1739312535159,1.34283546,640.71,640.36,0.31232431]
[1739312535355,0.658,640.72,640.36,0.31232431]
[1739312535558,1.3427817,640.71,640.36,0.31232431]
[1739312535756,0.658,640.72,640.36,0.31232431]
[1739312535956,1.3427817,640.71,640.36,0.31232431]
[1739312536154,0.658,640.72,640.36,0.31232431]
[1739312536358,1.34279034,640.71,640.36,0.31232431]
[1739312536658,1.609,640.72,640.36,0.31232431]
[1739312536858,1.34274029,640.71,640.36,0.31232431]
[1739312537161,1.34275322,640.7,640.36,0.31232431]
[1739312537362,1.609,640.72,640.36,0.31232431]
[1739312537560,1.3426802,640.71,640.36,0.31232431]
[1739312537755,1.609,640.72,640.36,0.31232431]
[1739312537955,1.34266089,640.71,640.36,0.31232431]
[1739312538160,1.34266089,640.7,640.36,0.31232431]
[1739312538357,1.34266089,640.69,640.12,1.13057641]
[1739312538661,1.34266089,640.68,640.12,1.13057641]
[1739312538863,1.34266089,640.67,640.12,1.13057641]
[1739312539055,1.609,640.72,640.12,1.13057641]
[1739312539260,1.34263227,640.71,640.12,1.13057641]
[1739312539460,1.34263227,640.7,640.12,1.13057641]
[1739312539759,1.34263227,640.69,640.07,1.13057641]
[1739312539959,1.34263227,640.68,640.07,1.13057641]
[1739312540159,1.34263227,640.67,640.07,1.13057641]
[1739312540462,1.34263227,640.66,640.07,1.13057641]
[1739312540662,1.34263227,640.65,640.07,1.13057641]
[1739312540962,1.34263227,640.64,640.07,1.13057641]
[1739312541161,1.609,640.72,640.07,1.13057641]
[1739312541162,1.34263227,640.63,640.07,1.13057641]
[1739312541364,1.34263227,640.62,640.07,1.13057641]
[1739312541559,1.34263227,640.61,640.07,1.13057641]
[1739312541762,1.34263227,640.6,640.07,1.13057641]
[1739312541958,1.34263227,640.59,640.07,1.13057641]
[1739312542263,1.34263227,640.58,640.07,1.13057641]
[1739312542464,1.609,640.72,640.07,1.13057641]
[1739312542659,1.34179995,640.71,640.07,1.13057641]
[1739312542860,1.34179995,640.71,639.34,2.32156329]
[1739312542861,1.34179995,640.7,639.65,1.13057641]
[1739312543063,1.34179995,640.69,639.67,0.31266121]
[1739312543263,1.34179995,640.68,639.67,0.31266121]
[1739312543464,1.34179995,640.67,639.67,0.31266121]
[1739312543663,1.34179995,640.66,639.67,0.31266121]
[1739312543861,1.34179995,640.65,639.67,0.31266121]
[1739312544061,1.34179995,640.64,639.67,0.31266121]
[1739312544265,1.34179995,640.63,639.67,0.31266121]